Workbook

Sheet EWMA
V1: VALE5 | W1: PETR4 | X1: IBOV | Y1: VALE5 | Z1: PETR4 | AA1: IBOV
L2: ============================================================== | U2: 25/10/2021 | V2: 59.78 | W2: 10.34 | X2: 108714
L3: Material Desenvolvido pela Quantitus | U3: 2021-10-26 | V3: 59.14 | W3: 10.24 | X3: 106419 | Y3: =LN(V3/V2) -> -0.01076364243 | Z3: =LN(W3/W2) -> -0.009718249469 | AA3: -0.02133644829
L4: Para críticas, sugestões e autorização de uso: contato@quantitus.com.br | U4: 2021-10-27 | V4: 57.8 | W4: 10.22 | X4: 106363 | Y4: =LN(V4/V3) -> -0.02291873875 | Z4: -0.001955034836 | AA4: -0.0005263603246
L5: Não nos responsabilizamos pelo uso deste material em empresas reais | U5: 2021-10-28 | V5: 57.22 | W5: 10.31 | X5: 105704 | Y5: -0.01008528806 | Z5: 0.008767713253 | AA5: -0.006215036958
E6: Fator de decaimento exponencial | F6: 0.98 | L6: A decisão de investimento é de exclusiva responsabilidade do investidor | U6: 2021-10-29 | V6: 55.6 | W6: 9.7 | X6: 103500 | Y6: -0.02872028637 | Z6: -0.06098841252 | AA6: -0.02107112241
L7: ============================================================== | U7: 2021-11-01 | V7: 56.15 | W7: 9.97 | X7: 105550 | Y7: 0.009843479928 | Z7: 0.02745469846 | AA7: 0.01961316159
U8: 2021-11-03 | V8: 51.88 | W8: 9.56 | X8: 105616 | Y8: -0.07909332174 | Z8: -0.04199285691 | AA8: 0.0006251006521
F9: Base de dados - Clique aqui | U9: 2021-11-04 | V9: 51.29 | W9: 9.26 | X9: 103412 | Y9: =LN(V9/V8) -> -0.01143755805 | Z9: =LN(W9/W8) -> -0.03188367841 | AA9: =LN(X9/X8) -> -0.02108886545
U10: 2021-11-05 | V10: 49.77 | W10: 9.2 | X10: 104824 | Y10: -0.03008340853 | Z10: -0.006500564603 | AA10: 0.0135617438
U11: 2021-11-08 | V11: 52.48 | W11: 9.3 | X11: 104781 | Y11: 0.05301975177 | Z11: 0.0108109161 | AA11: -0.0004102955617
F12: VALE5 | G12: PETR4 | U12: 2021-11-09 | V12: 51.19 | W12: 9.49 | X12: 105535 | Y12: -0.02488794417 | Z12: 0.02022421246 | AA12: 0.007170193712
E13: Beta EWMA | F13: =betaewma(Y$3:Y$757,$AA$3:$AA$757,$F$6) -> 0.07206531586 | G13: =betaewma(Z$3:Z$757,$AA$3:$AA$757,$F$6) -> 0.06769407011 | U13: 2021-11-10 | V13: 51 | W13: 9.41 | X13: 105967 | Y13: -0.003718567745 | Z13: -0.008465659025 | AA13: 0.004085073434
U14: 2021-11-11 | V14: 52.8 | W14: 9.42 | X14: 107594 | Y14: 0.03468555799 | Z14: 0.001062134991 | AA14: 0.0152371592
U15: 2021-11-12 | V15: 53.03 | W15: 9.61 | X15: 106334 | Y15: 0.004346600437 | Z15: 0.01996913439 | AA15: -0.0117798004
U16: 2021-11-16 | V16: 51.5 | W16: 9.71 | X16: 104403 | Y16: -0.02927598348 | Z16: 0.01035205932 | AA16: -0.01832667302
U17: 2021-11-17 | V17: 50.46 | W17: 9.46 | X17: 102948 | Y17: -0.02040086446 | Z17: -0.02608389924 | AA17: -0.01403440429
F18: VALE5 | G18: PETR4 | H18: IBOV | U18: 2021-11-18 | V18: 48.39 | W18: 9.45 | X18: 102426 | Y18: -0.04188776241 | Z18: -0.001057641558 | AA18: -0.005083419752
E19: Média EWMA | F19: =mediaewma(Y3:Y757,$F$6) -> -6.561664588e-05 | G19: =mediaewma(Z3:Z757,$F$6) -> -0.0004184447026 | H19: -2.923686618e-05 | U19: 2021-11-19 | V19: 49.71 | W19: 9.29 | X19: 103035 | Y19: 0.0269129393 | Z19: =LN(W19/W18) -> -0.01707618868 | AA19: =LN(X19/X18) -> 0.005928149707
E20: Média EWMA anualizada (i.i.d.) | F20: =F19*252 -> -0.01653539476 | G20: =G19*252 -> -0.1054480651 | H20: =H19*252 -> -0.007367690277 | U20: 2021-11-22 | V20: 52.47 | W20: 9.39 | X20: 102122 | Y20: 0.05403545759 | Z20: 0.01070674039 | AA20: -0.00890055935
E21: Variância EWMA | F21: =varewma($Y$3:$Y$757,$F$6) -> 0.0002292316937 | G21: =varewma($Y$3:$Y$757,$F$6) -> 0.0002292316937 | H21: 0.0002292316937 | U21: 2021-11-23 | V21: 53.86 | W21: 9.9 | X21: 103653 | Y21: 0.02614650968 | Z21: 0.05288946392 | AA21: 0.01488060504
E22: Desvio Padrão EWMA | F22: =desvpadewma($Y$3:$Y$757,$F$6) -> 0.01514039939 | G22: =desvpadewma($Y$3:$Y$757,$F$6) -> 0.01514039939 | H22: 0.01514039939 | U22: 2021-11-24 | V22: 55.11 | W22: 10.1 | X22: 104514 | Y22: 0.02294310051 | Z22: 0.02000066671 | AA22: 0.0082722517
E23: Volatilidade Anual EWMA (i.i.d.) | F23: =F22*SQRT(252) -> 0.2403463892 | G23: =G22*SQRT(252) -> 0.2403463892 | H23: =H22*SQRT(252) -> 0.2403463892 | U23: 2021-11-25 | V23: 54.73 | W23: 10.55 | X23: 105811 | Y23: -0.006919182739 | Z23: 0.04359043607 | AA23: 0.01233345005
U24: 2021-11-26 | V24: 53.29 | W24: 10.14 | X24: 102224 | Y24: -0.02666330885 | Z24: -0.03963786176 | AA24: -0.03448799991
U25: 2021-11-29 | V25: 53.96 | W25: 10.49 | X25: 102814 | Y25: 0.01249433503 | Z25: 0.03393442425 | AA25: 0.005755046659
U26: 2021-11-30 | V26: 54.31 | W26: 10.48 | X26: 101915 | Y26: 0.006465340707 | Z26: -0.0009537435153 | AA26: -0.008782397983
F27: VALE5 | G27: PETR4 | H27: IBOV | U27: 2021-12-01 | V27: 54.52 | W27: 10.54 | X27: 100774 | Y27: 0.003859234782 | Z27: 0.00570886422 | AA27: -0.01125874668
E28: VALE5 | F28: =covarewma($Y$3:$Y$757,Y3:Y757,$F$6) -> 0.0002292316937 | G28: =covarewma($Y$3:$Y$757,Z3:Z757,$F$6) -> 3.674983207e-05 | H28: =covarewma($Y$3:$Y$757,AA3:AA757,$F$6) -> 5.14781375e-05 | U28: 2021-12-02 | V28: 57.06 | W28: 11.34 | X28: 104466 | Y28: 0.04553573896 | Z28: 0.07315875519 | AA28: 0.03598127375
E29: PETR4 | F29: =G28 -> 3.674983207e-05 | G29: =covarewma($Z$3:$Z$757,Z3:Z757,$F$6) -> 0.0002074683722 | H29: =covarewma($Z$3:$Z$757,AA3:AA757,$F$6) -> 4.835564248e-05 | U29: 2021-12-03 | V29: 55.8 | W29: 11.5 | X29: 105069 | Y29: -0.0223294764 | Z29: 0.01401073707 | AA29: 0.005755617578
E30: IBOV | F30: =H28 -> 5.14781375e-05 | G30: =H29 -> 4.835564248e-05 | H30: =covarewma(AA3:AA757,AA3:AA757,$F$6) -> 0.0007143261205 | U30: 2021-12-06 | V30: 58.83 | W30: 11.56 | X30: 106858 | Y30: 0.05287805949 | Z30: 0.005203827875 | AA30: 0.01688357309
U31: 2021-12-07 | V31: 59.26 | W31: 11.74 | X31: 107557 | Y31: 0.007282613269 | Z31: 0.01545095116 | AA31: 0.006520089325
U32: 2021-12-08 | V32: 58.82 | W32: 11.74 | X32: 108095 | Y32: -0.00745260902 | Z32: 0 | AA32: 0.004989530504
U33: 2021-12-09 | V33: 58.37 | W33: 11.72 | X33: 106291 | Y33: -0.00767987391 | Z33: -0.001705030251 | AA33: -0.01682985438
U34: 2021-12-10 | V34: 58.73 | W34: 11.86 | X34: 107758 | Y34: 0.006148610319 | Z34: 0.01187460942 | AA34: 0.01370735644
F35: VALE5 | G35: PETR4 | H35: IBOV | U35: 2021-12-13 | V35: 60.45 | W35: 11.79 | X35: 107383 | Y35: 0.02886590753 | Z35: -0.00591967902 | AA35: -0.0034860894
E36: VALE5 | F36: =correlewma($Y$3:$Y$757,Y3:Y757,$F$6) -> 1 | G36: =correlewma($Y$3:$Y$757,Z3:Z757,$F$6) -> 0.1685163631 | H36: =correlewma($Y$3:$Y$757,AA3:AA757,$F$6) -> 0.1272146796 | U36: 2021-12-14 | V36: 60.44 | W36: 11.65 | X36: 106759 | Y36: -0.0001654396563 | Z36: -0.01194553454 | AA36: -0.005827925079
E37: PETR4 | F37: =G36 -> 0.1685163631 | G37: =correlewma($Z$3:$Z$757,Z3:Z757,$F$6) -> 1 | H37: =correlewma($Z$3:$Z$757,AA3:AA757,$F$6) -> 0.1256096318 | U37: 2021-12-15 | V37: 60.1 | W37: 11.72 | X37: 107431 | Y37: -0.005641295863 | Z37: 0.005990604137 | AA37: 0.006274823334
E38: IBOV | F38: =H36 -> 0.1272146796 | G38: =H37 -> 0.1256096318 | H38: =correlewma($AA$3:$AA$757,AA3:AA757,$F$6) -> 1 | U38: 2021-12-16 | V38: 62.45 | W38: 11.88 | X38: 108326 | Y38: 0.03835639503 | Z38: 0.01355952979 | AA38: 0.008296418041
U39: 2021-12-17 | V39: 61.47 | W39: 11.6 | X39: 107200 | Y39: -0.01581698565 | Z39: -0.02385121582 | AA39: -0.01044895043
U40: 2021-12-20 | V40: 60.77 | W40: 11.26 | X40: 105019 | Y40: -0.01145300477 | Z40: -0.0297484754 | AA40: -0.02055496247
U41: 2021-12-21 | V41: 62.37 | W41: 11.28 | X41: 105499 | Y41: 0.02598814439 | Z41: 0.001774623358 | AA41: 0.00456018803
U42: 2021-12-22 | V42: 62.05 | W42: 11.26 | X42: 105243 | Y42: -0.005143878887 | Z42: -0.001774623358 | AA42: -0.002429512161
U43: 2021-12-23 | V43: 61.45 | W43: 11.33 | X43: 104891 | Y43: -0.009716675639 | Z43: 0.006197452328 | AA43: -0.003350246312
U44: 2021-12-24 | V44: 61.45 | W44: 11.33 | X44: 104891 | Y44: 0 | Z44: 0 | AA44: 0
U45: 2021-12-27 | V45: 61.29 | W45: 11.5 | X45: 105554 | Y45: -0.002607138514 | Z45: 0.01489296033 | AA45: 0.006300954582
U46: 2021-12-28 | V46: 59.63 | W46: 11.51 | X46: 104864 | Y46: -0.02745789436 | Z46: 0.0008691873646 | AA46: -0.006558397791
U47: 2021-12-29 | V47: 59.97 | W47: 11.42 | X47: 104107 | Y47: 0.005685634045 | Z47: -0.007850018506 | AA47: -0.007245056121
U48: 2021-12-30 | V48: 60.53 | W48: 11.38 | X48: 104822 | Y48: 0.009294672723 | Z48: -0.00350877553 | AA48: 0.006844457124
U49: 2021-12-31 | V49: 60.53 | W49: 11.38 | X49: 104822 | Y49: 0 | Z49: 0 | AA49: 0
U50: 2022-01-03 | V50: 60.56 | W50: 11.64 | X50: 103921 | Y50: 0.0004954992256 | Z50: 0.02259001361 | AA50: -0.008632678417
U51: 2022-01-04 | V51: 59.84 | W51: 11.68 | X51: 103513 | Y51: -0.01196027546 | Z51: 0.003430535097 | AA51: -0.00393378642
U52: 2022-01-05 | V52: 60.41 | W52: 11.23 | X52: 101005 | Y52: =LN(V52/V51) -> 0.009480320484 | Z52: =LN(W52/W51) -> -0.03928920865 | AA52: =LN(X52/X51) -> -0.02452718812
U53: 2022-01-06 | V53: 61.63 | W53: 11.22 | X53: 101561 | Y53: 0.01999411082 | Z53: -0.0008908686558 | AA53: 0.005489582618
U54: 2022-01-07 | V54: 65.21 | W54: 11.27 | X54: 102719 | Y54: 0.05646406643 | Z54: 0.004446427957 | AA54: 0.01133750151
U55: 2022-01-10 | V55: 64.44 | W55: 11.2 | X55: 101945 | Y55: -0.0118782731 | Z55: -0.006230549751 | AA55: -0.007563652523
U56: 2022-01-11 | V56: 65.67 | W56: 11.54 | X56: 103778 | Y56: 0.01890764189 | Z56: 0.02990548278 | AA56: 0.01782055005
U57: 2022-01-12 | V57: 66.38 | W57: 11.89 | X57: 105685 | Y57: 0.01075360609 | Z57: 0.02987844962 | AA57: 0.01820896952
U58: 2022-01-13 | V58: 65.37 | W58: 12.13 | X58: 105529 | Y58: -0.01533236867 | Z58: 0.01998401225 | AA58: -0.001477175077
U59: 2022-01-14 | V59: 65.75 | W59: 12.58 | X59: 106927 | Y59: 0.005796233433 | Z59: 0.03642652832 | AA59: 0.01316056198
U60: 2022-01-17 | V60: 65.41 | W60: 12.6 | X60: 106373 | Y60: -0.005184519085 | Z60: 0.001588562685 | AA60: -0.005194573331
U61: 2022-01-18 | V61: 67.01 | W61: 12.66 | X61: 106667 | Y61: 0.02416671001 | Z61: 0.004750602759 | AA61: 0.002760046814
U62: 2022-01-19 | V62: 68.48 | W62: 12.6 | X62: 108013 | Y62: 0.02169986985 | Z62: -0.004750602759 | AA62: 0.01253975813
U63: 2022-01-20 | V63: 67.32 | W63: 12.69 | X63: 109101 | Y63: -0.01708436251 | Z63: 0.007117467769 | AA63: 0.01002246845
U64: 2022-01-21 | V64: 65.92 | W64: 12.71 | X64: 108941 | Y64: -0.02101548372 | Z64: 0.001574803475 | AA64: -0.001467607422
U65: 2022-01-24 | V65: 65.11 | W65: 12.78 | X65: 107937 | Y65: -0.01236373835 | Z65: 0.005492363748 | AA65: -0.009258727692
U66: 2022-01-25 | V66: 65.26 | W66: 13.2 | X66: 110203 | Y66: 0.002301143916 | Z66: 0.03233538064 | AA66: 0.02077639599
U67: 2022-01-26 | V67: 65.45 | W67: 13.55 | X67: 111289 | Y67: 0.002907201191 | Z67: 0.02616971773 | AA67: 0.009806301833
U68: 2022-01-27 | V68: 65.6 | W68: 13.55 | X68: 112611 | Y68: =LN(V68/V67) -> 0.002289203594 | Z68: 0 | AA68: 0.01180898046
U69: 2022-01-28 | V69: 64.95 | W69: 13.02 | X69: 111910 | Y69: -0.009957952833 | Z69: -0.03989991055 | AA69: -0.006244425046
U70: 2022-01-31 | V70: 62.78 | W70: 12.94 | X70: 112143 | Y70: -0.0339811917 | Z70: -0.006163347708 | AA70: 0.002079865782
U71: 2022-02-01 | V71: 66.23 | W71: 13.2 | X71: 113228 | Y71: 0.05349698108 | Z71: 0.01989354052 | AA71: 0.009628642395
U72: 2022-02-02 | V72: 66.6 | W72: 13.01 | X72: 111894 | Y72: 0.005571045049 | Z72: -0.01449853707 | AA72: -0.01185149043
U73: 2022-02-03 | V73: 66.57 | W73: 12.83 | X73: 111695 | Y73: -0.0004505519337 | Z73: -0.0139321139 | AA73: -0.001780052261
U74: 2022-02-04 | V74: 68.3 | W74: 13.05 | X74: 112244 | Y74: 0.02565574096 | Z74: 0.01700195514 | AA74: 0.004903130762
U75: 2022-02-07 | V75: 69.97 | W75: 12.86 | X75: 111996 | Y75: 0.02415681218 | Z75: -0.01466641496 | AA75: -0.002211916706
U76: 2022-02-08 | V76: 70.95 | W76: 12.73 | X76: 112234 | Y76: 0.01390882485 | Z76: -0.01016030624 | AA76: 0.002122821116
U77: 2022-02-09 | V77: 70.97 | W77: 12.78 | X77: 112461 | Y77: 0.0002818489308 | Z77: 0.00392003638 | AA77: 0.002020517388
U78: 2022-02-10 | V78: 72.88 | W78: 12.98 | X78: 113367 | Y78: 0.02655700041 | Z78: 0.01552826233 | AA78: 0.008023848777
U79: 2022-02-11 | V79: 71.4 | W79: 13.5 | X79: 113572 | Y79: -0.02051638361 | Z79: 0.03927997417 | AA79: 0.001806653381
U80: 2022-02-14 | V80: 71.09 | W80: 13.2 | X80: 113899 | Y80: -0.004351189404 | Z80: -0.02247285585 | AA80: 0.00287509375
U81: 2022-02-15 | V81: 68.98 | W81: 12.99 | X81: 114828 | Y81: -0.03013007243 | Z81: -0.01603699891 | AA81: 0.008123265802
U82: 2022-02-16 | V82: 69.48 | W82: 13.17 | X82: 115180 | Y82: 0.007222333864 | Z82: 0.01376168507 | AA82: 0.003060765493
U83: 2022-02-17 | V83: 66.5 | W83: 13.12 | X83: 113528 | Y83: -0.04383699371 | Z83: =LN(W83/W82) -> -0.003803732239 | AA83: =LN(X83/X82) -> -0.01444661955
U84: 2022-02-18 | V84: 66.64 | W84: 13.2 | X84: 112879 | Y84: 0.002103050197 | Z84: 0.006079046076 | AA84: -0.005733053992
U85: 2022-02-21 | V85: 66.69 | W85: 13.54 | X85: 111725 | Y85: 0.0007500187856 | Z85: 0.02543143789 | AA85: -0.01027595372
U86: 2022-02-22 | V86: 67.85 | W86: 13.5 | X86: 112891 | Y86: 0.01724436964 | Z86: -0.00295858204 | AA86: 0.0103822566
U87: 2022-02-23 | V87: 67.13 | W87: 13.69 | X87: 112007 | Y87: -0.01066834833 | Z87: 0.01397595386 | AA87: -0.007861382073
U88: 2022-02-24 | V88: 67.96 | W88: 13.36 | X88: 111591 | Y88: 0.01228825885 | Z88: -0.02440047119 | AA88: -0.003720967808
U89: 2022-02-25 | V89: 71.64 | W89: 13.6 | X89: 113141 | Y89: 0.05273428039 | Z89: 0.01780462463 | AA89: 0.01379442695
U90: 2022-03-02 | V90: 77.37 | W90: 13.87 | X90: 115173 | Y90: 0.07694553137 | Z90: 0.01965844158 | AA90: 0.01780051731
U91: 2022-03-03 | V91: 77.4 | W91: 13.7 | X91: 115165 | Y91: 0.0003876720343 | Z91: -0.01233240149 | AA91: -6.946313681e-05
U92: 2022-03-04 | V92: 79.17 | W92: 13.69 | X92: 114473 | Y92: 0.02261065859 | Z92: -0.0007301935337 | AA92: -0.006026895328
U93: 2022-03-07 | V93: 81.57 | W93: 12.72 | X93: 111593 | Y93: 0.02986410813 | Z93: -0.07349008139 | AA93: -0.02548066336
U94: 2022-03-08 | V94: 77.99 | W94: 12.98 | X94: 111203 | Y94: -0.04488093397 | Z94: 0.02023415336 | AA94: -0.003500964096
U95: 2022-03-09 | V95: 75.94 | W95: 13.02 | X95: 113900 | Y95: -0.02663705854 | Z95: 0.003076925504 | AA95: 0.02396351058
U96: 2022-03-10 | V96: 78.44 | W96: 13.48 | X96: 113663 | Y96: 0.03239044652 | Z96: 0.0347204687 | AA96: -0.002082940423
U97: 2022-03-11 | V97: 78.03 | W97: 13 | X97: 111713 | Y97: -0.005240633199 | Z97: -0.03625774802 | AA97: -0.01730484756
U98: 2022-03-14 | V98: 73.85 | W98: 12.75 | X98: 109927 | Y98: -0.05505735915 | Z98: -0.01941808586 | AA98: -0.01611657335
U99: 2022-03-15 | V99: 71.73 | W99: 12.44 | X99: 108959 | Y99: -0.02912693884 | Z99: -0.02461418429 | AA99: -0.008844844445
U100: 2022-03-16 | V100: 73.47 | W100: 12.33 | X100: 111112 | Y100: 0.02396808949 | Z100: -0.008881770135 | AA100: 0.01956703693
U101: 2022-03-17 | V101: 76.03 | W101: 12 | X101: 113076 | Y101: 0.03425083961 | Z101: -0.02712866739 | AA101: 0.0175214574
U102: 2022-03-18 | V102: 77.47 | W102: 12.24 | X102: 115310 | Y102: 0.0187627654 | Z102: 0.0198026273 | AA102: 0.01956399477
U103: 2022-03-21 | V103: 79.66 | W103: 12.7 | X103: 116154 | Y103: 0.02787681311 | Z103: 0.03689271638 | AA103: 0.007292743067
U104: 2022-03-22 | V104: 77.88 | W104: 12.65 | X104: 117272 | Y104: -0.02259839725 | Z104: -0.003944778291 | AA104: 0.009579126138
U105: 2022-03-23 | V105: 77.71 | W105: 12.82 | X105: 117457 | Y105: -0.002185231283 | Z105: 0.01334923632 | AA105: 0.001576286171
U106: 2022-03-24 | V106: 78.13 | W106: 12.97 | X106: 119052 | Y106: 0.005390156788 | Z106: 0.01163254684 | AA106: 0.0134880633
U107: 2022-03-25 | V107: 76.78 | W107: 12.92 | X107: 119081 | Y107: -0.01742991644 | Z107: -0.003862499974 | AA107: 0.0002435613724
U108: 2022-03-28 | V108: 76.86 | W108: 12.64 | X108: 118737 | Y108: 0.001041395564 | Z108: -0.02191010964 | AA108: -0.00289297059
U109: 2022-03-29 | V109: 76.2 | W109: 12.92 | X109: 120014 | Y109: -0.008624122444 | Z109: 0.02191010964 | AA109: 0.01069743941
U110: 2022-03-30 | V110: 77.29 | W110: 13.2 | X110: 120259 | Y110: 0.01420311843 | Z110: 0.02144033124 | AA110: 0.002039347616
U111: 2022-03-31 | V111: 77.07 | W111: 13.38 | X111: 119999 | Y111: -0.002850481329 | Z111: 0.01354422511 | AA111: -0.002164340846
U112: 2022-04-01 | V112: 78.17 | W112: 13.2 | X112: 121570 | Y112: 0.01417184244 | Z112: -0.01354422511 | AA112: 0.01300681915
U113: 2022-04-04 | V113: 78.96 | W113: 13.08 | X113: 121279 | Y113: 0.01005545289 | Z113: -0.009132483563 | AA113: -0.00239655209
U114: 2022-04-05 | V114: 76.68 | W114: 12.96 | X114: 118885 | Y114: -0.02930047695 | Z114: -0.009216655105 | AA114: -0.01993703717
U115: 2022-04-06 | V115: 77.84 | W115: 12.94 | X115: 118227 | Y115: 0.0150145197 | Z115: -0.001544401851 | AA115: -0.005550134022
U116: 2022-04-07 | V116: 78.31 | W116: 13.62 | X116: 118862 | Y116: 0.006019870885 | Z116: 0.05121601165 | AA116: 0.005356651033
U117: 2022-04-08 | V117: 76.71 | W117: 13.68 | X117: 118322 | Y117: -0.02064323079 | Z117: 0.004395611473 | AA117: -0.004553434743
U118: 2022-04-11 | V118: 75.78 | W118: 13.58 | X118: 116952 | Y118: -0.01219767238 | Z118: -0.007336790064 | AA118: -0.01164612736
U119: 2022-04-12 | V119: 75.28 | W119: 13.54 | X119: 116146 | Y119: -0.006619910313 | Z119: -0.002949854646 | AA119: -0.006915573812
U120: 2022-04-13 | V120: 75.3 | W120: 13.83 | X120: 116781 | Y120: 0.0002656395287 | Z120: 0.02119187819 | AA120: 0.005452365532
U121: 2022-04-14 | V121: 74.24 | W121: 13.68 | X121: 116181 | Y121: -0.01417704633 | Z121: -0.01090523348 | AA121: -0.005151066068
U122: 2022-04-18 | V122: 73.02 | W122: 13.44 | X122: 115687 | Y122: -0.01656971225 | Z122: -0.0176995771 | AA122: -0.004261051525
U123: 2022-04-19 | V123: 70.69 | W123: 13.85 | X123: 115056 | Y123: -0.03242925604 | Z123: 0.03004989754 | AA123: -0.005469301976
U124: 2022-04-20 | V124: 68.85 | W124: 13.92 | X124: 114343 | Y124: -0.02637389501 | Z124: 0.005041422273 | AA124: -0.006216263331
U125: 2022-04-22 | V125: 64.86 | W125: 13.37 | X125: 111077 | Y125: -0.0596991243 | Z125: -0.04031326379 | AA125: -0.02897904852
U126: 2022-04-25 | V126: 63.76 | W126: 13.18 | X126: 110684 | Y126: -0.0171050664 | Z126: -0.01431286204 | AA126: -0.003544360022
U127: 2022-04-26 | V127: 62.88 | W127: 13.15 | X127: 108212 | Y127: -0.01389788636 | Z127: -0.002278770451 | AA127: -0.0225870285
U128: 2022-04-27 | V128: 66.25 | W128: 13.15 | X128: 109349 | Y128: 0.05220731675 | Z128: 0 | AA128: 0.01045233614
U129: 2022-04-28 | V129: 67.88 | W129: 13.24 | X129: 109918 | Y129: 0.0243059755 | Z129: 0.006820791885 | AA129: 0.005190031124
U130: 2022-04-29 | V130: 67.15 | W130: 13.25 | X130: 107876 | Y130: -0.0108125174 | Z130: 0.0007550019234 | AA130: -0.01875221391
U131: 2022-05-02 | V131: 66.85 | W131: 13.12 | X131: 106638 | Y131: -0.004477619421 | Z131: -0.009859768916 | AA131: -0.01154249834
U132: 2022-05-03 | V132: 66.51 | W132: 13.24 | X132: 106528 | Y132: =LN(V132/V131) -> -0.005098991252 | Z132: 0.009104766993 | AA132: -0.001032059613
U133: 2022-05-04 | V133: 65.96 | W133: 14.03 | X133: 108343 | Y133: -0.008303814605 | Z133: 0.05795534361 | AA133: 0.01689425906
U134: 2022-05-05 | V134: 64.76 | W134: 14.01 | X134: 105304 | Y134: -0.01836036888 | Z134: -0.001426533765 | AA134: -0.02845071533
U135: 2022-05-06 | V135: 64.3 | W135: 14.47 | X135: 105134 | Y135: -0.007128497566 | Z135: 0.03230618029 | AA135: -0.001615678128
U136: 2022-05-09 | V136: 61.67 | W136: 14.07 | X136: 103250 | Y136: -0.04176204224 | Z136: -0.02803266952 | AA136: -0.01808249515
U137: 2022-05-10 | V137: 60.9 | W137: 14.2 | X137: 103109 | Y137: -0.01256441429 | Z137: 0.009197093481 | AA137: -0.001366550739
U138: 2022-05-11 | V138: 63.44 | W138: 14.69 | X138: 104396 | Y138: 0.04086140261 | Z138: 0.03392502558 | AA138: 0.01240467944
U139: 2022-05-12 | V139: 62.8 | W139: 14.8 | X139: 105687 | Y139: -0.01013950385 | Z139: 0.007460190584 | AA139: 0.01229053518
U140: 2022-05-13 | V140: 62.73 | W140: 15 | X140: 106924 | Y140: -0.001115271366 | Z140: 0.01342302033 | AA140: 0.011636406
U141: 2022-05-16 | V141: 64.61 | W141: 15.14 | X141: 108232 | Y141: 0.02952939546 | Z141: 0.009290046907 | AA141: 0.01215876958
U142: 2022-05-17 | V142: 64.34 | W142: 14.95 | X142: 108789 | Y142: -0.004187675759 | Z142: -0.01262894817 | AA142: 0.005133155068
U143: 2022-05-18 | V143: 62.71 | W143: 14.7 | X143: 106247 | Y143: -0.02566059726 | Z143: -0.01686380605 | AA143: -0.02364365426
U144: 2022-05-19 | V144: 64.38 | W144: 14.95 | X144: 107005 | Y144: 0.02628210132 | Z144: 0.01686380605 | AA144: 0.00710899023
U145: 2022-05-20 | V145: 65.51 | W145: 15.24 | X145: 108487 | Y145: 0.01739977687 | Z145: 0.01921225042 | AA145: 0.01375478779
U146: 2022-05-23 | V146: 66.85 | W146: 15.84 | X146: 110345 | Y146: 0.0202485008 | Z146: 0.03861483613 | AA146: 0.01698147117
U147: 2022-05-24 | V147: 67.75 | W147: 15.41 | X147: 110580 | Y147: 0.01337315621 | Z147: =LN(W147/W146) -> -0.02752173705 | AA147: =LN(X147/X146) -> 0.00212741961
U148: 2022-05-25 | V148: 67.96 | W148: 15.63 | X148: 110579 | Y148: 0.003094837044 | Z148: 0.0141754951 | AA148: -9.043267513e-06
U149: 2022-05-26 | V149: 67.92 | W149: 15.67 | X149: 111889 | Y149: -0.0005887548006 | Z149: 0.002555911935 | AA149: 0.01177711079
U150: 2022-05-27 | V150: 69.11 | W150: 14.92 | X150: 111941 | Y150: 0.0173688961 | Z150: -0.04904546159 | AA150: 0.00046463835
U151: 2022-05-30 | V151: 69.86 | W151: 14.62 | X151: 111032 | Y151: 0.01079380128 | Z151: -0.02031214045 | AA151: -0.008153498727
U152: 2022-05-31 | V152: 69.5 | W152: 14.66 | X152: 111350 | Y152: -0.005166486808 | Z152: 0.002732242137 | AA152: 0.00285994565
U153: 2022-06-01 | V153: 71.14 | W153: 14.64 | X153: 111359 | Y153: 0.02332301395 | Z153: -0.001365187925 | AA153: 8.082295736e-05
U154: 2022-06-02 | V154: 72.48 | W154: 14.51 | X154: 112392 | Y154: 0.01866089521 | Z154: -0.008919441637 | AA154: 0.009233543889
U155: 2022-06-03 | V155: 71.32 | W155: 14.77 | X155: 111102 | Y155: -0.01613386874 | Z155: 0.01776002965 | AA155: -0.01154406227
U156: 2022-06-06 | V156: 71.39 | W156: 14.78 | X156: 110185 | Y156: 0.0009810105194 | Z156: 0.0006768189768 | AA156: -0.008287926982
U157: 2022-06-07 | V157: 73.06 | W157: 14.95 | X157: 110069 | Y157: 0.02312321785 | Z157: 0.01143638432 | AA157: -0.001053329435
U158: 2022-06-08 | V158: 70.54 | W158: 14.88 | X158: 108367 | Y158: -0.03510109656 | Z158: -0.004693270432 | AA158: -0.01558382725
U159: 2022-06-09 | V159: 68.16 | W159: 14.66 | X159: 107093 | Y159: -0.03432204229 | Z159: -0.01489533295 | AA159: -0.01182599877
U160: 2022-06-10 | V160: 68.17 | W160: 14.46 | X160: 105481 | Y160: 0.0001467028536 | Z160: -0.01373647973 | AA160: -0.01516677393
U161: 2022-06-13 | V161: 66.01 | W161: 14.27 | X161: 102598 | Y161: -0.03219833967 | Z161: -0.01322678524 | AA161: -0.02771240254
U162: 2022-06-14 | V162: 65.88 | W162: 14.43 | X162: 102063 | Y162: -0.001971340391 | Z162: 0.0111499413 | AA162: -0.005228169692
U163: 2022-06-15 | V163: 65.84 | W163: 14.18 | X163: 102806 | Y163: -0.0006073489406 | Z163: -0.01747685168 | AA163: 0.007253447399
U164: 2022-06-17 | V164: 62.41 | W164: 13.32 | X164: 99824 | Y164: -0.05350203742 | Z164: -0.06256585599 | AA164: -0.02943508171
U165: 2022-06-20 | V165: 60.87 | W165: 13.47 | X165: 99852 | Y165: -0.02498507644 | Z165: 0.01119832531 | AA165: 0.0002804543379
U166: 2022-06-21 | V166: 61.27 | W166: 13.2 | X166: 99684 | Y166: 0.006549884232 | Z166: -0.02024816083 | AA166: -0.001683907061
U167: 2022-06-22 | V167: 60.75 | W167: 13.16 | X167: 99522 | Y167: -0.008523244517 | Z167: -0.003034903695 | AA167: -0.001626457393
U168: 2022-06-23 | V168: 58.53 | W168: 12.92 | X168: 98080 | Y168: -0.03722763892 | Z168: -0.01840542754 | AA168: -0.01459525306
U169: 2022-06-24 | V169: 60.16 | W169: 12.82 | X169: 98672 | Y169: 0.02746823634 | Z169: -0.007770046862 | AA169: 0.006017746061
U170: 2022-06-27 | V170: 62.93 | W170: 13.64 | X170: 100763 | Y170: 0.0450153179 | Z170: 0.06200020092 | AA170: 0.02097000651
U171: 2022-06-28 | V171: 64.05 | W171: 13.81 | X171: 100591 | Y171: 0.0176410308 | Z171: 0.01238631501 | AA171: -0.001708434318
U172: 2022-06-29 | V172: 63.52 | W172: 13.69 | X172: 99621 | Y172: -0.008309211404 | Z172: -0.008727328121 | AA172: -0.009689804703
U173: 2022-06-30 | V173: 61.72 | W173: 13.62 | X173: 98541 | Y173: -0.02874678944 | Z173: -0.005126338579 | AA173: -0.01090028051
U174: 2022-07-01 | V174: 60.55 | W174: 13.91 | X174: 98953 | Y174: -0.0191385575 | Z174: 0.02106870521 | AA174: 0.004172284704
U175: 2022-07-04 | V175: 60.2 | W175: 14.21 | X175: 98608 | Y175: -0.005797117684 | Z175: 0.02133793617 | AA175: -0.003492595712
U176: 2022-07-05 | V176: 59.9 | W176: 13.67 | X176: 98294 | Y176: -0.004995847193 | Z176: -0.03874229137 | AA176: -0.00318940657
U177: 2022-07-06 | V177: 60.47 | W177: 13.49 | X177: 98718 | Y177: 0.009470869164 | Z177: -0.01325498052 | AA177: 0.004304312982
U178: 2022-07-07 | V178: 62.22 | W178: 13.89 | X178: 100729 | Y178: 0.02852911718 | Z178: 0.02922048655 | AA178: 0.02016644174
U179: 2022-07-08 | V179: 60.79 | W179: 14.04 | X179: 100288 | Y179: -0.02325118971 | Z179: 0.01074124183 | AA179: -0.004387695643
U180: 2022-07-11 | V180: 58.72 | W180: 13.98 | X180: 98212 | Y180: -0.03464491745 | Z180: -0.004282661792 | AA180: -0.02091763925
U181: 2022-07-12 | V181: 58.89 | W181: 13.77 | X181: 98271 | Y181: 0.00289091265 | Z181: -0.01513542407 | AA181: 0.0006005608808
U182: 2022-07-13 | V182: 58.69 | W182: 13.78 | X182: 97881 | Y182: -0.003401942386 | Z182: 0.0007259528449 | AA182: -0.003976513254
U183: 2022-07-14 | V183: 54.78 | W183: 13.41 | X183: 96120 | Y183: -0.06894419074 | Z183: -0.02721756829 | AA183: -0.01815504425
U184: 2022-07-15 | V184: 55.12 | W184: 13.63 | X184: 96551 | Y184: 0.00618746287 | Z184: 0.01627254841 | AA184: 0.00447395528
U185: 2022-07-18 | V185: 55.41 | W185: 13.95 | X185: 96916 | Y185: 0.005247456174 | Z185: 0.02320626256 | AA185: 0.003773257796
U186: 2022-07-19 | V186: 55.53 | W186: 14.23 | X186: 98244 | Y186: 0.002163332374 | Z186: 0.01987290383 | AA186: 0.01360955624
U187: 2022-07-20 | V187: 54.33 | W187: 14.22 | X187: 98286 | Y187: -0.02184685469 | Z187: -0.0007029877267 | AA187: 0.0004274156682
U188: 2022-07-21 | V188: 55.28 | W188: 14.15 | X188: 99033 | Y188: 0.0173346189 | Z188: -0.004934800286 | AA188: 0.007571532074
U189: 2022-07-22 | V189: 55.8 | W189: 14.3 | X189: 98924 | Y189: 0.009362689928 | Z189: 0.01054491318 | AA189: -0.001101249372
U190: 2022-07-25 | V190: 56.83 | W190: 14.97 | X190: 100269 | Y190: 0.01829048592 | Z190: 0.04578866117 | AA190: 0.01350469586
U191: 2022-07-26 | V191: 56.73 | W191: 15.12 | X191: 99771 | Y191: -0.001761183971 | Z191: 0.00997017232 | AA191: -0.004979014485
U192: 2022-07-27 | V192: 56.85 | W192: 15.29 | X192: 101437 | Y192: 0.002113048858 | Z192: 0.01118064919 | AA192: 0.01656035619
U193: 2022-07-28 | V193: 56.99 | W193: 15.75 | X193: 102596 | Y193: 0.00245959365 | Z193: 0.02964134533 | AA193: 0.0113610295
U194: 2022-07-29 | V194: 56.23 | W194: 16.65 | X194: 103164 | Y194: -0.01342539154 | Z194: 0.05556985115 | AA194: 0.005521009358
U195: 2022-08-01 | V195: 54.89 | W195: 16.42 | X195: 102225 | Y195: -0.02411923974 | Z195: -0.0139101124 | AA195: -0.00914368873
U196: 2022-08-02 | V196: 56.64 | W196: 16.5 | X196: 103361 | Y196: =LN(V196/V195) -> 0.03138426682 | Z196: 0.004860276882 | AA196: 0.01105144866
U197: 2022-08-03 | V197: 54.44 | W197: 16.52 | X197: 103774 | Y197: -0.0396162716 | Z197: 0.001211387186 | AA197: 0.00398774275
U198: 2022-08-04 | V198: 54.12 | W198: 16.68 | X198: 105892 | Y198: -0.005895374481 | Z198: 0.009638628838 | AA198: 0.02020424913
U199: 2022-08-05 | V199: 54.82 | W199: 17 | X199: 106471 | Y199: 0.01285128757 | Z199: 0.01900294713 | AA199: 0.005452940811
U200: 2022-08-08 | V200: 55.29 | W200: 17.86 | X200: 108402 | Y200: 0.008536969475 | Z200: 0.04935023139 | AA200: 0.01797389142
... 557 more rows
